bitfinex-derivatives/quotes_BNBF0:USTF0_20250807
["timestamp","ask_amount","ask_price","bid_price","bid_amount"]
[1754525584290,0.80074383,769.52,769.02,0.798]
[1754525584491,0.80074383,769.51,769.02,0.798]
[1754525584690,0.80074383,769.5,769.02,0.798]
[1754525584890,0.80074383,769.49,769.02,0.798]
[1754525585095,0.80074383,769.48,769.02,0.798]
[1754525585294,0.80074383,769.47,769.02,0.798]
[1754525585490,0.80074383,769.46,769.02,0.798]
[1754525585691,0.80074383,769.45,769.02,0.798]
[1754525585994,0.80074383,769.44,769.02,0.798]
[1754525586188,0.80074383,769.43,769.02,0.798]
[1754525586394,0.87553963,769.57,769.02,0.798]
[1754525586395,0.80074383,769.42,769.02,0.798]
[1754525586590,0.80074383,769.41,769.02,0.798]
[1754525586789,0.80074383,769.4,769.02,0.798]
[1754525586988,0.80074383,769.39,769.02,0.798]
[1754525587192,0.80074383,769.38,769.02,0.798]
[1754525587391,0.80074383,769.37,769.02,0.798]
[1754525587590,0.80074383,769.36,769.02,0.798]
[1754525587793,0.80074383,769.35,769.02,0.798]
[1754525587990,0.80074383,769.34,769.02,0.798]
[1754525588197,0.80074383,769.33,769.02,0.798]
[1754525588392,0.80074383,769.32,769.02,0.798]
[1754525588693,0.80074383,769.31,769.02,0.798]
[1754525588890,0.80074383,769.3,769.02,0.798]
[1754525589095,0.87553963,769.58,769.02,0.798]
[1754525589395,0.80081094,769.57,769.02,0.798]
[1754525589592,0.80081094,769.56,769.02,0.798]
[1754525589890,0.80081094,769.55,769.02,0.798]
[1754525590095,0.80081094,769.54,769.02,0.798]
[1754525590296,0.80081094,769.53,769.02,0.798]
[1754525590596,0.80081094,769.52,769.02,0.798]
[1754525590793,0.80081094,769.51,769.02,0.798]
[1754525590995,0.80081094,769.5,769.02,0.798]
[1754525591295,0.80081094,769.49,769.02,0.798]
[1754525591592,0.80081094,769.48,769.02,0.798]
[1754525591896,0.80081094,769.47,769.02,0.798]
[1754525592196,0.80081094,769.46,769.02,0.798]
[1754525592495,0.80081094,769.45,769.02,0.798]
[1754525592796,0.80081094,769.44,769.02,0.798]
[1754525593092,0.80081094,769.43,769.02,0.798]
[1754525593295,0.80081094,769.42,769.02,0.798]
[1754525593496,0.80081094,769.41,769.02,0.798]
[1754525593792,0.80081094,769.4,769.01,0.22612453]
[1754525593995,0.80081094,769.39,769.01,0.22612453]
[1754525594291,0.80081094,769.38,769.01,0.22612453]
[1754525594491,0.80081094,769.37,769.01,0.22612453]
[1754525594695,0.80081094,769.36,769.01,0.22612453]
[1754525594894,0.80081094,769.35,769.01,0.22612453]
[1754525595092,0.80081094,769.34,769.01,0.22612453]
[1754525595294,0.80081094,769.33,769.01,0.22612453]
[1754525595492,0.80081094,769.32,769.01,0.22612453]
[1754525595792,0.80081094,769.31,769.01,0.22612453]
[1754525595992,0.80081094,769.3,769.01,0.22612453]
[1754525596295,0.80081094,769.29,769.01,0.22612453]
[1754525596494,0.87553963,769.61,769.01,0.22612453]
[1754525596698,0.80097393,769.6,769.01,0.22612453]
[1754525596998,0.87553963,769.61,769.01,0.22612453]
[1754525596999,0.80097393,769.59,769.02,0.757]
[1754525597197,0.80097393,769.58,769.02,0.757]
[1754525597498,0.80097393,769.57,769.02,0.757]
[1754525597792,0.80097393,769.56,769.02,0.757]
[1754525597997,0.80097393,769.55,769.02,0.757]
[1754525598298,0.80097393,769.54,769.02,0.757]
[1754525598499,0.80097393,769.53,769.02,0.757]
[1754525598698,0.80097393,769.52,769.02,0.757]
[1754525598894,0.80097393,769.51,769.02,0.757]
[1754525599099,0.80097393,769.5,769.02,0.757]
[1754525599298,0.80097393,769.49,769.02,0.757]
[1754525599495,0.80097393,769.48,769.02,0.757]
[1754525599696,0.80097393,769.47,769.02,0.757]
[1754525599900,0.80097393,769.46,769.02,0.757]
[1754525600196,0.80097393,769.45,769.02,0.757]
[1754525600395,0.80097393,769.44,769.02,0.757]
[1754525600600,1.1651013,769.73,769.02,0.757]
[1754525600796,0.87708277,769.58,769.02,0.757]
[1754525601001,0.80101639,769.57,769.02,0.757]
[1754525601199,0.80101639,769.56,769.02,0.757]
[1754525601495,0.80101639,769.55,769.02,0.757]
[1754525601699,0.80101639,769.54,769.02,0.757]
[1754525601995,0.80101639,769.53,769.02,0.757]
[1754525602196,0.80101639,769.52,769.02,0.757]
[1754525602402,0.80101639,769.51,769.02,0.757]
[1754525602598,0.80101639,769.5,769.02,0.757]
[1754525602899,0.80101639,769.49,769.02,0.757]
[1754525603095,0.80101639,769.48,769.02,0.757]
[1754525603300,0.80101639,769.47,769.02,0.757]
[1754525603497,0.80101639,769.46,769.02,0.757]
[1754525603800,0.80101639,769.45,769.02,0.757]
[1754525603998,0.80101639,769.44,769.02,0.757]
[1754525604199,0.80101639,769.43,769.02,0.757]
[1754525604400,0.80101639,769.42,769.02,0.757]
[1754525604599,0.80101639,769.41,769.02,0.757]
[1754525604797,0.80101639,769.4,769.02,0.757]
[1754525604998,0.80101639,769.39,769.02,0.757]
[1754525605201,0.80101639,769.38,769.02,0.757]
[1754525605400,0.80101639,769.37,769.02,0.757]
[1754525605602,0.80101639,769.36,769.02,0.757]
[1754525605803,0.80101639,769.35,769.02,0.757]
[1754525606105,0.80101639,769.34,769.02,0.757]
[1754525606300,0.80101639,769.33,769.02,0.757]
[1754525606502,1.1651013,769.74,769.02,0.757]
[1754525606503,0.80101639,769.32,769.02,0.757]
[1754525606703,0.80101639,769.31,769.02,0.757]
[1754525606905,0.80101639,769.3,769.02,0.757]
[1754525607104,0.80101639,769.29,769.02,0.757]
[1754525607306,0.87708277,769.58,769.02,0.757]
[1754525607506,0.80102658,769.57,769.02,0.757]
[1754525607706,0.80102658,769.56,769.02,0.757]
[1754525607903,0.80102658,769.55,769.02,0.757]
[1754525608103,0.80102658,769.54,769.02,0.757]
[1754525608302,0.80102658,769.53,769.02,0.757]
[1754525608503,0.80102658,769.52,769.02,0.757]
[1754525608807,0.80102658,769.51,769.02,0.757]
[1754525609007,0.80102658,769.5,769.02,0.757]
[1754525609208,0.80102658,769.49,769.02,0.757]
[1754525609507,0.80102658,769.48,769.02,0.757]
[1754525609806,0.80102658,769.47,769.02,0.757]
[1754525610006,0.80102658,769.46,769.02,0.757]
[1754525610203,0.80102658,769.45,769.02,0.757]
[1754525610407,0.80102658,769.44,769.02,0.757]
[1754525610603,0.80102658,769.43,769.02,0.757]
[1754525610806,0.80102658,769.42,769.02,0.757]
[1754525611003,0.80102658,769.41,769.02,0.757]
[1754525611205,0.80102658,769.4,769.02,0.757]
[1754525611401,0.80102658,769.39,769.02,0.757]
[1754525611607,0.80102658,769.38,769.02,0.757]
[1754525611807,0.80102658,769.37,769.02,0.757]
[1754525612006,0.80102658,769.36,769.02,0.757]
[1754525612204,0.80102658,769.35,769.02,0.757]
[1754525612504,0.80102658,769.34,769.02,0.757]
[1754525612805,0.80102658,769.33,769.02,0.757]
[1754525613107,0.80102658,769.32,769.02,0.757]
[1754525613307,0.80102658,769.31,769.02,0.757]
[1754525613507,0.80102658,769.3,769.02,0.757]
[1754525613705,0.80102658,769.29,769.02,0.757]
[1754525613906,0.87708277,769.6,769.02,0.757]
[1754525614110,0.80090045,769.59,769.02,0.757]
[1754525614307,0.80090045,769.58,769.02,0.757]
[1754525614509,0.80090045,769.57,769.02,0.757]
[1754525614807,0.80090045,769.56,769.02,0.757]
[1754525615005,1.1651013,769.77,769.02,0.757]
[1754525615206,0.87710133,769.6,769.02,0.757]
[1754525615509,0.80090418,769.59,769.02,0.757]
[1754525615705,0.80090418,769.58,769.02,0.757]
[1754525615906,0.80090418,769.57,769.02,0.757]
[1754525616210,0.80090418,769.56,769.02,0.757]
[1754525616407,0.80090418,769.55,769.02,0.757]
[1754525616609,0.80090418,769.54,769.02,0.757]
[1754525616805,0.80090418,769.53,769.02,0.757]
[1754525617010,0.80090418,769.52,769.02,0.757]
[1754525617206,0.80090418,769.51,769.02,0.757]
[1754525617407,0.80090418,769.5,769.02,0.757]
[1754525617707,0.80090418,769.49,769.02,0.757]
[1754525617910,0.80090418,769.48,769.02,0.757]
[1754525618206,0.80090418,769.47,769.02,0.757]
[1754525618410,0.80090418,769.46,769.02,0.757]
[1754525618607,0.80090418,769.45,769.02,0.757]
[1754525618812,0.80090418,769.44,769.02,0.757]
[1754525619013,0.80090418,769.43,769.02,0.757]
[1754525619208,0.80090418,769.42,769.02,0.757]
[1754525619516,0.80090418,769.41,769.02,0.757]
[1754525619809,0.80090418,769.4,769.02,0.757]
[1754525620113,0.80090418,769.39,769.02,0.757]
[1754525620311,0.80090418,769.38,769.02,0.757]
[1754525620508,0.80090418,769.37,769.02,0.757]
[1754525620811,0.80090418,769.36,769.02,0.757]
[1754525621012,0.80090418,769.35,769.02,0.757]
[1754525621211,0.80090418,769.34,769.02,0.757]
[1754525621410,0.80090418,769.33,769.02,0.757]
[1754525621609,0.80090418,769.32,769.02,0.757]
[1754525621811,0.80090418,769.31,769.02,0.757]
[1754525622010,0.80090418,769.3,769.02,0.757]
[1754525622215,0.80090418,769.29,769.02,0.757]
[1754525622415,0.87710133,769.56,769.02,0.757]
[1754525622611,0.80093348,769.55,769.02,0.757]
[1754525622814,0.80093348,769.54,769.02,0.757]
[1754525623114,0.80093348,769.53,769.02,0.757]
[1754525623315,0.80093348,769.52,769.02,0.757]
[1754525623516,0.80093348,769.51,769.02,0.757]
[1754525623813,0.80093348,769.5,769.02,0.757]
[1754525624011,0.80093348,769.49,769.02,0.757]
[1754525624210,0.80093348,769.48,769.02,0.757]
[1754525624410,0.80093348,769.47,769.02,0.757]
[1754525624612,0.80093348,769.46,769.02,0.757]
[1754525624917,0.80093348,769.45,769.02,0.757]
[1754525625115,0.80093348,769.44,769.02,0.757]
[1754525625316,0.80093348,769.43,769.02,0.757]
[1754525625619,0.80093348,769.42,769.02,0.757]
[1754525625815,0.80093348,769.41,769.02,0.757]
[1754525626115,0.80093348,769.4,769.02,0.757]
[1754525626315,0.80093348,769.39,769.02,0.757]
[1754525626512,0.80093348,769.38,769.02,0.757]
[1754525626715,0.80093348,769.37,769.02,0.757]
[1754525626917,0.80093348,769.36,769.02,0.757]
[1754525627116,0.80093348,769.35,769.02,0.757]
[1754525627314,0.80093348,769.34,769.02,0.757]
[1754525627515,0.80093348,769.33,769.02,0.757]
[1754525627717,0.80093348,769.32,769.02,0.757]
[1754525627917,0.80093348,769.31,769.02,0.757]
[1754525628115,0.87710133,769.67,769.02,0.757]
[1754525628314,0.80095985,769.66,769.02,0.757]
[1754525628517,0.80095985,769.65,769.02,0.757]
[1754525628816,0.80095985,769.64,769.02,0.757]
[1754525629014,0.80095985,769.63,769.02,0.757]
[1754525629219,0.80095985,769.62,769.02,0.757]
[1754525629419,0.80095985,769.61,769.02,0.757]
[1754525629617,0.80095985,769.6,769.02,0.757]
[1754525629918,0.80095985,769.59,769.02,0.757]
[1754525630117,0.80095985,769.58,769.02,0.757]
[1754525630422,0.80095985,769.57,769.02,0.757]
[1754525630720,0.80095985,769.56,769.02,0.757]
[1754525631020,0.80095985,769.55,769.02,0.757]
[1754525631219,0.80095985,769.54,769.02,0.757]
[1754525631419,0.80095985,769.53,769.02,0.757]
[1754525631621,0.80095985,769.52,769.02,0.757]
[1754525631821,0.80095985,769.51,769.02,0.757]
[1754525632021,0.80095985,769.5,769.02,0.757]
[1754525632219,0.80095985,769.49,769.02,0.757]
[1754525632418,0.80095985,769.48,769.02,0.757]
[1754525632717,0.80095985,769.47,769.02,0.757]
[1754525633021,0.80095985,769.46,769.02,0.757]
[1754525633321,0.80095985,769.45,769.02,0.757]
[1754525633519,0.80095985,769.44,769.02,0.757]
[1754525633718,0.80095985,769.43,769.02,0.757]
[1754525634017,0.80095985,769.42,769.02,0.757]
[1754525634220,0.80095985,769.41,769.02,0.757]
[1754525634522,0.80095985,769.4,769.02,0.757]
[1754525634722,0.80095985,769.39,769.02,0.757]
[1754525634922,0.80095985,769.38,769.02,0.757]
[1754525635222,0.80095985,769.37,769.02,0.757]
[1754525635422,0.80095985,769.36,769.02,0.757]
[1754525635629,0.80095985,769.35,769.02,0.757]
[1754525635829,0.80095985,769.34,769.02,0.757]
[1754525636029,0.87710133,769.67,769.02,0.757]
[1754525636230,1.67783773,769.66,769.02,0.757]
[1754525636429,0.8007364,769.65,769.02,0.757]
[1754525636628,0.8007364,769.64,769.02,0.757]
[1754525636827,0.8007364,769.63,769.02,0.757]
[1754525637026,0.8007364,769.62,769.02,0.757]
[1754525637226,0.8007364,769.61,769.02,0.757]
[1754525637429,0.8007364,769.6,769.02,0.757]
[1754525637632,0.8007364,769.59,769.02,0.757]
[1754525637932,0.8007364,769.58,769.02,0.757]
[1754525638231,0.8007364,769.57,769.02,0.757]
[1754525638429,0.8007364,769.56,769.02,0.757]
[1754525638627,0.8007364,769.55,769.02,0.757]
[1754525638829,0.8007364,769.54,769.02,0.757]
[1754525639027,0.8007364,769.53,769.02,0.757]
[1754525639232,0.8007364,769.52,769.02,0.757]
[1754525639432,0.8007364,769.51,769.02,0.757]
[1754525639731,0.8007364,769.5,769.02,0.757]
[1754525639933,0.8007364,769.49,769.02,0.757]
[1754525640132,0.8007364,769.48,769.02,0.757]
[1754525640432,0.8007364,769.47,769.02,0.757]
[1754525640629,0.8007364,769.46,769.02,0.757]
[1754525640829,0.8007364,769.45,769.02,0.757]
[1754525641028,0.8007364,769.44,769.02,0.757]
[1754525641227,0.8007364,769.43,769.02,0.757]
[1754525641427,0.8007364,769.42,769.02,0.757]
[1754525641728,0.8007364,769.41,769.02,0.757]
[1754525641928,0.8007364,769.4,769.02,0.757]
[1754525642132,0.8007364,769.39,769.02,0.757]
[1754525642330,0.8007364,769.38,769.02,0.757]
[1754525642630,0.8007364,769.37,769.02,0.757]
[1754525642833,0.8007364,769.36,769.02,0.757]
[1754525643132,0.8007364,769.35,769.02,0.757]
[1754525643334,0.8007364,769.34,769.02,0.757]
[1754525643534,0.87710133,769.75,769.02,0.757]
[1754525643731,0.80012053,769.74,769.02,0.757]
[1754525643936,0.80012053,769.73,769.02,0.757]
[1754525644233,0.80012053,769.72,769.02,0.757]
[1754525644437,0.80012053,769.71,769.02,0.757]
[1754525644631,0.80012053,769.7,769.02,0.757]
[1754525644836,0.80012053,769.69,769.02,0.757]
[1754525645132,0.80012053,769.68,769.02,0.757]
[1754525645334,0.80012053,769.67,769.02,0.757]
[1754525645532,0.80012053,769.66,769.02,0.757]
[1754525645734,0.80012053,769.65,769.02,0.757]
[1754525646037,0.80012053,769.64,769.02,0.757]
[1754525646235,0.22613702,769.87,769.02,0.757]
[1754525646236,0.80012053,769.63,769.02,0.757]
[1754525646435,0.80012053,769.62,769.02,0.757]
[1754525646634,0.80012053,769.61,769.02,0.757]
[1754525646835,0.80012053,769.6,769.02,0.757]
[1754525647037,0.80012053,769.59,769.02,0.757]
[1754525647340,0.80012053,769.58,769.02,0.757]
[1754525647535,0.80012053,769.57,769.02,0.757]
[1754525647740,0.80012053,769.56,769.02,0.757]
[1754525647936,0.80012053,769.55,769.02,0.757]
[1754525648135,0.80012053,769.54,769.02,0.757]
[1754525648337,0.80012053,769.53,769.02,0.757]
[1754525648639,0.80012053,769.52,769.02,0.757]
[1754525648836,0.80012053,769.51,769.02,0.757]
[1754525649136,0.87710133,769.73,769.02,0.757]
[1754525649137,0.80012053,769.5,769.02,0.757]
[1754525649341,0.80012053,769.49,769.02,0.757]
[1754525649538,0.80012053,769.48,769.02,0.757]
[1754525649740,0.80012053,769.47,769.02,0.757]
[1754525649939,0.80012053,769.46,769.02,0.757]
[1754525650139,0.80012053,769.45,769.02,0.757]
[1754525650339,0.80012053,769.44,769.02,0.757]
[1754525650539,0.80012053,769.43,769.02,0.757]
[1754525650740,0.80012053,769.42,769.02,0.757]
[1754525650939,0.80012053,769.41,769.02,0.757]
[1754525651143,0.80012053,769.4,769.02,0.757]
[1754525651341,0.80012053,769.39,769.02,0.757]
[1754525651545,0.80012053,769.38,769.02,0.757]
[1754525651743,0.80012053,769.37,769.02,0.757]
[1754525652040,0.80012053,769.36,769.02,0.757]
[1754525652244,0.87710133,769.68,769.02,0.757]
[1754525652442,0.79999363,769.67,769.02,0.757]
[1754525652645,0.79999363,769.66,769.02,0.757]
[1754525652943,0.79999363,769.65,769.02,0.757]
[1754525653145,0.79999363,769.64,769.02,0.757]
[1754525653343,0.79999363,769.63,769.02,0.757]
[1754525653542,0.79999363,769.62,769.02,0.757]
[1754525653747,0.79999363,769.61,769.02,0.757]
[1754525653946,0.79999363,769.6,769.02,0.757]
[1754525654248,0.79999363,769.59,769.02,0.757]
[1754525654548,0.79999363,769.58,769.02,0.757]
[1754525654743,0.79999363,769.57,769.02,0.757]
[1754525654948,0.79999363,769.56,769.02,0.757]
[1754525655148,0.79999363,769.55,769.02,0.757]
[1754525655347,0.79999363,769.54,769.02,0.757]
[1754525655544,0.79999363,769.53,769.02,0.757]
[1754525655748,0.79999363,769.52,769.02,0.757]
[1754525655946,0.79999363,769.51,769.01,0.22612453]
[1754525656247,0.79999363,769.5,769.01,0.22612453]
[1754525656446,0.79999363,769.49,769.01,0.22612453]
[1754525656745,0.79999363,769.48,769.01,0.22612453]
[1754525656946,0.79999363,769.47,769.01,0.22612453]
[1754525657249,0.79999363,769.46,769.01,0.22612453]
[1754525657448,0.79999363,769.45,769.01,0.22612453]
[1754525657647,0.79999363,769.44,769.01,0.22612453]
[1754525657950,0.79999363,769.43,769.01,0.22612453]
[1754525658246,0.79999363,769.42,769.01,0.22612453]
[1754525658450,0.79999363,769.41,769.01,0.22612453]
[1754525658746,0.79999363,769.4,769.01,0.22612453]
[1754525658950,0.79999363,769.39,769.01,0.22612453]
[1754525659144,0.79999363,769.38,769.01,0.22612453]
[1754525659346,0.79999363,769.37,769.01,0.22612453]
[1754525659546,0.87710133,769.7,769.01,0.22612453]
[1754525659746,0.7999157,769.69,769.01,0.22612453]
[1754525659945,0.7999157,769.68,769.01,0.22612453]
[1754525660146,0.7999157,769.67,769.01,0.22612453]
[1754525660346,0.7999157,769.66,769.01,0.22612453]
[1754525660547,0.7999157,769.65,769.01,0.22612453]
[1754525660747,0.7999157,769.64,769.01,0.22612453]
[1754525660948,0.7999157,769.63,769.01,0.22612453]
[1754525661147,0.7999157,769.62,769.01,0.22612453]
[1754525661347,0.7999157,769.61,769.01,0.22612453]
[1754525661545,0.7999157,769.6,769.01,0.22612453]
[1754525661747,0.7999157,769.59,769.01,0.22612453]
[1754525661946,0.7999157,769.58,769.01,0.22612453]
[1754525662150,0.7999157,769.57,769.01,0.22612453]
[1754525662451,0.7999157,769.56,769.01,0.22612453]
[1754525662651,0.7999157,769.55,769.01,0.22612453]
[1754525662851,0.7999157,769.54,769.01,0.22612453]
[1754525663047,0.7999157,769.53,769.01,0.22612453]
[1754525663252,0.7999157,769.52,769.01,0.22612453]
[1754525663547,0.7999157,769.51,769.01,0.22612453]
[1754525663750,0.7999157,769.5,769.01,0.22612453]
[1754525663947,0.7999157,769.49,769.01,0.22612453]
[1754525664149,0.7999157,769.48,769.01,0.22612453]
[1754525664452,0.7999157,769.47,769.01,0.22612453]
[1754525664652,0.7999157,769.46,769.01,0.22612453]
[1754525664848,0.7999157,769.45,769.01,0.22612453]
[1754525665053,0.7999157,769.44,769.01,0.22612453]
[1754525665348,0.7999157,769.43,769.01,0.22612453]
[1754525665547,0.7999157,769.42,769.01,0.22612453]
[1754525665748,0.7999157,769.41,769.01,0.22612453]
[1754525665950,0.7999157,769.4,769.01,0.22612453]
[1754525666148,0.7999157,769.39,769.01,0.22612453]
[1754525666453,0.7999157,769.38,769.01,0.22612453]
[1754525666654,0.7999157,769.37,769.01,0.22612453]
[1754525666953,0.87710133,769.64,769.01,0.22612453]
[1754525667154,0.79989608,769.63,769.01,0.22612453]
[1754525667354,0.79989608,769.62,769.01,0.22612453]
[1754525667551,0.79989608,769.61,769.01,0.22612453]
[1754525667853,0.79989608,769.6,769.01,0.22612453]
[1754525668049,0.79989608,769.59,769.01,0.22612453]
[1754525668251,0.79989608,769.58,769.01,0.22612453]
[1754525668454,0.79989608,769.57,769.01,0.22612453]
[1754525668753,0.79989608,769.56,769.01,0.22612453]
[1754525668956,0.79989608,769.55,769.01,0.22612453]
[1754525669153,0.79989608,769.54,769.01,0.22612453]
[1754525669354,0.79989608,769.53,769.01,0.22612453]
[1754525669552,0.79989608,769.52,769.01,0.22612453]
[1754525669757,0.79989608,769.51,769.01,0.22612453]
[1754525670058,0.79989608,769.5,769.01,0.22612453]
[1754525670254,0.79989608,769.49,769.01,0.22612453]
[1754525670453,0.79989608,769.48,769.01,0.22612453]
[1754525670657,0.79989608,769.47,769.01,0.22612453]
[1754525670859,0.79989608,769.46,769.01,0.22612453]
[1754525671155,0.79989608,769.45,769.01,0.22612453]
[1754525671355,0.79989608,769.44,769.01,0.22612453]
[1754525671554,0.79989608,769.43,769.01,0.22612453]
[1754525671756,0.79989608,769.42,769.01,0.22612453]
[1754525671961,0.79989608,769.41,769.01,0.22612453]
[1754525672263,0.79989608,769.4,769.01,0.22612453]
[1754525672560,0.79989608,769.39,769.01,0.22612453]
[1754525672762,0.79989608,769.38,769.01,0.22612453]
[1754525672962,0.79989608,769.37,769.01,0.22612453]
[1754525673157,0.79989608,769.36,769.01,0.22612453]
[1754525673359,0.79989608,769.35,769.01,0.22612453]
[1754525673657,0.79989608,769.34,769.01,0.22612453]
[1754525673856,0.87710133,769.74,769.01,0.22612453]
[1754525674061,0.79960959,769.73,769.01,0.22612453]
[1754525674261,0.79960959,769.72,769.01,0.22612453]
[1754525674459,0.79960959,769.71,769.01,0.22612453]
[1754525674663,0.79960959,769.7,769.01,0.22612453]
[1754525674864,0.79960959,769.69,769.01,0.22612453]
[1754525675063,0.79960959,769.68,769.01,0.22612453]
[1754525675265,0.79960959,769.67,769.01,0.22612453]
[1754525675464,0.79960959,769.66,769.01,0.22612453]
[1754525675662,0.79960959,769.65,769.01,0.22612453]
[1754525675862,0.79960959,769.64,769.01,0.22612453]
[1754525676060,0.79960959,769.63,769.01,0.22612453]
[1754525676265,0.79960959,769.62,769.01,0.22612453]
[1754525676464,0.79960959,769.61,769.01,0.22612453]
[1754525676663,0.79960959,769.6,769.01,0.22612453]
[1754525676867,0.79960959,769.59,769.01,0.22612453]
[1754525677067,0.79960959,769.58,769.01,0.22612453]
[1754525677266,0.79960959,769.57,769.01,0.22612453]
[1754525677466,0.79960959,769.56,769.01,0.22612453]
[1754525677664,0.79960959,769.55,769.01,0.22612453]
[1754525677966,0.79960959,769.54,769.01,0.22612453]
[1754525678167,0.79960959,769.53,769.01,0.22612453]
[1754525678363,0.79960959,769.52,769.01,0.22612453]
[1754525678565,0.79960959,769.51,769.01,0.22612453]
[1754525678867,0.79960959,769.5,769.01,0.22612453]
[1754525679064,0.79960959,769.49,769.01,0.22612453]
[1754525679367,0.79960959,769.48,769.01,0.22612453]
[1754525679567,0.79960959,769.47,769.01,0.22612453]
[1754525679867,0.79960959,769.46,769.01,0.22612453]
[1754525680067,0.79960959,769.45,769.01,0.22612453]
[1754525680268,0.79960959,769.44,769.01,0.22612453]
[1754525680468,0.79960959,769.43,769.01,0.22612453]
[1754525680768,0.79960959,769.42,769.01,0.22612453]
[1754525681063,0.87710133,769.74,769.01,0.22612453]
[1754525681064,0.79960959,769.41,769.01,0.22612453]
[1754525681364,0.79960959,769.4,769.01,0.22612453]
[1754525681568,0.79960959,769.39,769.01,0.22612453]
[1754525681769,0.79960959,769.38,769.01,0.22612453]
[1754525682069,0.79960959,769.37,769.01,0.22612453]
[1754525682268,0.79960959,769.36,769.01,0.22612453]
[1754525682470,0.79960959,769.35,769.01,0.22612453]
[1754525682670,0.79960959,769.34,769.01,0.22612453]
[1754525682870,0.87710133,769.61,769.01,0.22612453]
[1754525683169,0.79979881,769.6,769.01,0.22612453]
[1754525683465,0.79979881,769.59,769.01,0.22612453]
[1754525683664,0.79979881,769.58,769.01,0.22612453]
[1754525683869,0.79979881,769.57,769.01,0.22612453]
[1754525684066,0.79979881,769.56,769.01,0.22612453]
[1754525684269,0.79979881,769.55,768.84,1.7421447]
[1754525684466,0.79979881,769.54,769.06,0.22613776]
[1754525684668,0.79979881,769.53,769.06,0.22613776]
[1754525684869,0.79979881,769.52,769.06,0.22613776]
[1754525685067,0.79979881,769.51,769.06,0.22613776]
[1754525685269,0.79979881,769.5,769.06,0.22613776]
[1754525685468,0.79979881,769.49,769.06,0.22613776]
[1754525685670,0.79979881,769.48,769.06,0.22613776]
[1754525685868,0.79979881,769.47,769.06,0.22613776]
[1754525686068,0.79979881,769.46,769.06,0.22613776]
[1754525686368,0.79979881,769.45,769.06,0.22613776]
[1754525686572,0.79979881,769.44,769.06,0.22613776]
[1754525686771,0.79979881,769.43,769.06,0.22613776]
[1754525686972,0.79979881,769.42,769.06,0.22613776]
[1754525687268,0.79979881,769.41,769.06,0.22613776]
[1754525687469,0.79979881,769.4,769.06,0.22613776]
[1754525687673,0.79979881,769.39,769.06,0.22613776]
[1754525687973,0.79979881,769.38,769.06,0.22613776]
[1754525688173,0.79979881,769.37,769.06,0.22613776]
[1754525688369,0.79979881,769.36,769.06,0.22613776]
[1754525688575,0.79979881,769.35,769.06,0.22613776]
[1754525688870,0.87710133,769.59,769.06,0.22613776]
[1754525688871,0.79979881,769.34,769.06,0.22613776]
[1754525689175,0.87710133,769.59,769.06,0.22613776]
[1754525689379,0.79999392,769.58,769.06,0.22613776]
[1754525689574,0.79999392,769.57,769.06,0.22613776]
[1754525689876,0.79999392,769.56,769.06,0.22613776]
[1754525690072,0.79999392,769.55,769.06,0.22613776]
[1754525690272,0.79999392,769.54,769.06,0.22613776]
[1754525690574,0.87710133,769.59,769.06,0.22613776]
[1754525690575,0.79999392,769.53,769.06,0.22613776]
[1754525690773,0.79999392,769.52,769.06,0.22613776]
[1754525690975,0.79999392,769.51,769.06,0.22613776]
[1754525691173,0.79999392,769.5,769.06,0.22613776]
[1754525691471,0.79999392,769.49,769.06,0.22613776]
[1754525691670,0.79999392,769.48,769.06,0.22613776]
[1754525691873,0.79999392,769.47,769.06,0.22613776]
[1754525692071,0.79999392,769.46,769.06,0.22613776]
[1754525692269,0.79999392,769.45,769.06,0.22613776]
[1754525692473,0.79999392,769.44,769.06,0.22613776]
[1754525692671,0.79999392,769.43,769.06,0.22613776]
[1754525692870,0.79999392,769.42,769.06,0.22613776]
[1754525693073,0.79999392,769.41,769.06,0.22613776]
[1754525693271,0.79999392,769.4,769.06,0.22613776]
[1754525693471,0.79999392,769.39,769.06,0.22613776]
[1754525693671,0.79999392,769.38,769.06,0.22613776]